bitfinex-derivatives/quotes_ETHF0:USTF0_20220108
["timestamp","ask_amount","ask_price","bid_price","bid_amount"]
[1641677477054,16.416,3074.2,3069.0,1.25580848]
[1641677477055,27.84684,3071.7,3069.9,3.61940296]
[1641677477455,0.08144,3071.7,3069.9,3.61940296]
[1641677477655,0.0814,3071.8,3069.9,3.61940296]
[1641677477954,0.0814,3072.1,3070.6,3.61940296]
[1641677478156,4.0,3071.7,3070.0,3.61940296]
[1641677478356,0.0814,3071.6,3070.0,3.61940296]
[1641677478758,4.0,3071.2,3068.3,0.0814]
[1641677478956,27.4859,3071.1,3068.5,1.25580848]
[1641677479155,1.62904124,3070.4,3068.6,1.62904124]
[1641677479357,0.6866,3070.2,3068.6,1.62904124]
[1641677479763,0.6866,3070.2,3068.6,5.2484442]
[1641677479955,0.6866,3070.2,3068.6,1.62904124]
[1641677480157,2.08622,3070.3,3069.6,2.00479]
[1641677480357,1.49918342,3070.1,3069.6,2.00479]
[1641677480556,1.49918342,3070.1,3068.6,1.62904124]
[1641677480757,4.0,3069.6,3067.7,5.81042236]
[1641677480958,1.63013799,3068.3,3067.7,0.39642236]
[1641677481159,0.9152,3068.3,3067.7,0.39642236]
[1641677481560,1.62969965,3069.1,3068.2,3.61940296]
[1641677481759,28.0091,3069.9,3068.5,3.61940296]
[1641677481959,0.6866,3069.9,3068.5,3.61940296]
[1641677482162,2.00479,3069.1,3068.5,3.61940296]
[1641677482462,2.00479,3069.1,3068.6,0.66197]
[1641677482665,2.00479,3069.1,3068.8,3.61940296]
[1641677482860,2.00479,3069.1,3068.9,0.66197]
[1641677483061,2.00479,3069.1,3068.5,3.61940296]
[1641677483360,2.00479,3069.1,3068.6,1.302757]
[1641677483962,2.00479,3069.1,3068.6,0.66197]
[1641677484361,2.00479,3069.4,3068.9,1.62888999]
[1641677484661,2.00479,3069.4,3069.0,0.66197]
[1641677485363,1.70973587,3071.8,3069.3,20.79799053]
[1641677485564,2.39633587,3071.8,3070.5,3.61940296]
[1641677485761,2.39633587,3071.8,3070.5,0.6556]
[1641677485965,0.08139,3071.7,3070.5,0.6556]
[1641677486162,4.00958,3070.6,3070.5,0.6556]
[1641677486761,4.00958,3070.6,3069.6,2.00479]
[1641677487164,2.00479,3070.6,3069.8,1.5]
[1641677487363,26.1388,3072.1,3070.3,3.61940296]
[1641677487565,0.08139,3072.0,3070.9,1.5]
[1641677487767,2.67202655,3072.9,3072.0,14.05]
[1641677488069,0.12915044,3072.2,3072.1,0.08135]
[1641677488266,2.30873417,3073.4,3072.2,14.71197]
[1641677488469,2.30873417,3073.4,3073.3,2.11940296]
[1641677488668,2.30873417,3073.4,3073.3,3.49030296]
[1641677489067,2.74432329,3074.0,3073.3,3.40897296]
[1641677489265,2.74432329,3074.0,3073.9,2.11940296]
[1641677490467,0.08139,3074.2,3073.7,2.00479]
[1641677490768,0.08139,3074.2,3073.7,0.66197]
[1641677490967,0.08139,3074.2,3073.6,2.11940296]
[1641677491577,0.08139,3074.2,3073.4,2.645577]
[1641677491970,1.5,3073.6,3072.6,2.11940296]
[1641677492168,2.00479,3072.8,3072.2,2.11940296]
[1641677492368,0.08139,3072.7,3072.2,2.76018996]
[1641677492568,0.08139,3072.7,3072.2,3.42215996]
[1641677492771,0.08139,3072.7,3071.8,2.00479]
[1641677492970,0.08139,3072.7,3071.9,2.11940296]
[1641677493171,0.08139,3072.7,3072.0,0.66197]
[1641677493369,0.08139,3072.7,3072.0,2.78137296]
[1641677493968,0.08139,3072.7,3071.0,0.08136]
[1641677494174,2.00479,3071.9,3071.2,2.00479]
[1641677494371,0.08139,3071.8,3071.5,2.11940296]
[1641677494571,2.00479,3071.9,3071.7,2.11940296]
[1641677494871,2.00479,3071.9,3071.8,0.66197]
[1641677496073,2.00479,3071.9,3071.4,2.11940296]
[1641677496273,0.08139,3071.8,3070.9,2.00479]
[1641677496475,0.08139,3071.7,3070.9,2.00479]
[1641677496676,0.08139,3071.7,3071.0,1.302757]
[1641677496872,2.63139,3071.9,3071.0,1.302757]
[1641677497272,2.00479,3071.9,3071.5,2.11940296]
[1641677497473,0.08139,3072.7,3071.6,0.66197]
[1641677497673,0.08136,3073.5,3072.0,2.11940296]
[1641677497878,0.08139,3072.7,3072.0,0.8434]
[1641677498076,0.16275,3072.7,3072.0,0.8434]
[1641677498281,2.00479,3072.4,3072.0,0.8434]
[1641677498476,2.08618,3072.4,3072.0,0.8434]
[1641677498875,2.08618,3072.4,3071.0,2.11940296]
[1641677499073,2.08618,3072.4,3071.1,1.62772338]
[1641677499277,0.90249936,3072.3,3071.1,1.62772338]
[1641677499477,0.90249936,3072.3,3071.5,2.11940296]
[1641677499676,0.08139,3072.2,3071.6,0.66197]
[1641677499875,2.00479,3072.4,3071.6,1.302757]
[1641677500275,2.00479,3071.7,3071.6,1.302757]
[1641677500676,2.00479,3071.7,3071.3,2.11940296]
[1641677500875,2.00479,3071.7,3071.3,0.66197]
[1641677501076,2.00479,3071.7,3070.9,4.12419296]
[1641677501277,0.08139,3071.6,3070.9,4.12419296]
[1641677501476,0.08139,3071.6,3071.0,0.66197]
[1641677502077,0.08139,3071.6,3071.1,0.640787]
[1641677502278,2.00479,3071.7,3071.2,0.66197]
[1641677504278,0.08139,3071.6,3071.2,0.66197]
[1641677504880,0.08139,3071.6,3070.9,2.00479]
[1641677505080,0.16278,3071.6,3070.9,2.00479]
[1641677505481,0.08139,3071.6,3070.9,2.00479]
[1641677506281,2.00479,3071.3,3070.9,2.00479]
[1641677506482,2.08618,3071.3,3070.9,2.00479]
[1641677506883,2.08618,3071.3,3070.4,2.00479]
[1641677507088,1.5,3071.2,3070.4,2.00479]
[1641677507284,1.5,3070.8,3069.5,1.28013089]
[1641677507486,1.62873081,3070.9,3069.5,1.28013089]
[1641677507685,0.08142,3070.8,3069.5,1.28013089]
[1641677507885,1.51038858,3070.8,3069.5,1.28013089]
[1641677508086,1.51038858,3070.8,3069.4,1.28013089]
[1641677508286,2.00479,3069.8,3069.4,1.28013089]
[1641677508492,0.08139,3069.7,3069.4,1.28013089]
[1641677508692,2.00479,3069.8,3069.4,1.92091789]
[1641677508896,2.00479,3069.8,3069.7,2.11940296]
[1641677509093,2.00479,3070.1,3069.7,2.11940296]
[1641677509292,2.00479,3070.1,3069.8,0.66197]
[1641677511294,2.08618,3070.1,3069.4,2.76018996]
[1641677511496,2.08618,3070.1,3069.5,0.66197]
[1641677512095,2.00479,3070.1,3069.5,0.66197]
[1641677512297,2.00479,3069.6,3069.5,0.66197]
[1641677512596,2.00479,3070.1,3069.5,2.78137296]
[1641677513196,2.00479,3070.1,3070.0,2.11940296]
[1641677513498,2.00479,3070.1,3070.0,3.50167296]
[1641677513996,1.5,3071.8,3070.0,3.50167296]
[1641677514198,2.00479,3070.7,3070.1,1.62822429]
[1641677514397,2.00479,3070.7,3070.0,3.38706]
[1641677514398,2.00479,3070.7,3070.6,2.11940296]
[1641677514698,2.00479,3070.7,3070.2,0.640787]
[1641677514898,2.00479,3070.7,3070.6,2.11940296]
[1641677515297,2.00479,3070.7,3070.3,0.66197]
[1641677516500,2.00479,3070.7,3070.2,0.640787]
[1641677516700,2.00479,3070.7,3070.0,2.00479]
[1641677516899,0.08139,3070.6,3070.0,2.00479]
[1641677517099,0.08139,3070.6,3070.0,1.302757]
[1641677517301,0.08139,3070.6,3070.2,2.11940296]
[1641677517702,2.00479,3070.7,3070.3,0.66197]
[1641677518103,2.00479,3070.7,3070.6,2.11940296]
[1641677518303,2.00479,3071.5,3070.6,4.78616296]
[1641677518503,2.00479,3071.5,3071.4,2.11940296]
[1641677518702,2.00479,3071.5,3071.4,3.48777296]
[1641677519203,2.00479,3071.5,3071.4,2.009157]
[1641677519403,2.00479,3071.5,3071.4,0.7064]
[1641677519805,2.00479,3071.5,3070.6,2.00479]
[1641677520006,2.00479,3071.5,3070.9,2.11940296]
[1641677520303,2.00479,3071.5,3070.4,2.00479]
[1641677520304,1.5,3071.1,3070.1,0.08139]
[1641677520507,1.5,3071.1,3069.2,1.50697018]
[1641677520705,0.08142,3071.0,3069.8,2.11940296]
[1641677520905,1.58142,3071.4,3069.8,2.11940296]
[1641677521706,1.5,3070.8,3069.8,2.11940296]
[1641677522006,1.71002349,3071.2,3069.8,2.11940296]
[1641677522205,1.5,3070.7,3069.4,1.50697018]
[1641677522409,1.5,3070.7,3069.2,2.00479]
[1641677522410,2.00479,3069.9,3069.2,2.00479]
[1641677522607,0.08139,3069.8,3069.2,2.00479]
[1641677523206,0.08139,3069.8,3069.2,2.645577]
[1641677523409,0.08139,3069.8,3069.2,2.00479]
[1641677523607,0.08139,3069.8,3068.7,1.62901205]
[1641677523608,1.58143,3069.7,3068.7,1.62901205]
[1641677523809,1.62837012,3071.6,3069.6,3.12849475]
[1641677524008,90.337,3072.2,3070.4,2.28200296]
[1641677524209,31.86211,3072.2,3070.4,2.93000296]
[1641677524408,2.00279,3071.8,3071.0,2.00479]
[1641677524612,0.08139,3071.7,3071.0,2.00479]
[1641677524818,0.08139,3071.7,3071.4,2.28200296]
[1641677525010,0.08139,3071.7,3071.4,0.7869]
[1641677526215,1.3374,3071.5,3070.7,2.28200296]
[1641677526413,0.08139,3071.4,3070.7,2.28200296]
[1641677526618,1.3374,3070.8,3070.1,2.00479]
[1641677526823,1.3374,3070.2,3069.4,0.0814]
[1641677527012,1.41879,3070.1,3069.2,1.50697018]
[1641677527215,1.41879,3070.1,3069.2,0.26797018]
[1641677527216,1.62938365,3069.7,3069.2,0.26797018]
[1641677527422,0.08139,3069.6,3069.2,0.26797018]
[1641677528013,0.08139,3069.6,3069.0,1.88371273]
[1641677528413,2.00479,3069.3,3068.6,2.00479]
[1641677528616,2.00479,3069.3,3068.7,1.302757]
[1641677528815,0.08146,3070.1,3069.2,2.28200296]
[1641677529116,0.08144,3071.1,3070.0,2.28200296]
[1641677529314,0.08139,3070.7,3070.2,2.28200296]
[1641677529514,1.62848945,3071.4,3070.2,2.28200296]
[1641677529715,1.3374,3071.5,3069.4,2.28200296]
[1641677529915,1.3374,3071.0,3068.9,2.28200296]
[1641677530116,1.3374,3070.9,3068.1,0.60159369]
[1641677530319,2.00479,3069.9,3069.2,2.00479]
[1641677530516,0.08139,3069.8,3069.3,0.640787]
[1641677530719,0.08139,3069.8,3069.3,1.302757]
[1641677532119,2.00479,3070.2,3069.3,1.302757]
[1641677532319,2.00479,3070.2,3069.6,2.00479]
[1641677532518,0.08139,3070.1,3069.6,2.00479]
[1641677532921,1.62920314,3070.0,3069.2,2.00479]
[1641677533118,1.3374,3069.7,3069.2,2.00479]
[1641677533720,0.08139,3069.6,3068.4,2.28200296]
[1641677534118,0.08139,3069.6,3068.3,1.62920314]
[1641677534319,0.891,3070.1,3068.3,1.62920314]
[1641677534320,4.00958,3070.2,3069.5,2.28200296]
[1641677534518,0.08139,3070.1,3069.6,0.640787]
[1641677534722,0.08139,3070.1,3069.5,2.90970296]
[1641677534919,0.08139,3070.1,3069.5,0.6277]
[1641677535521,1.3374,3069.7,3069.0,2.00479]
[1641677535720,0.08139,3069.6,3068.5,3.9110787]
[1641677536019,0.08139,3069.6,3068.5,1.62907574]
[1641677536220,0.08139,3069.6,3068.9,2.28200296]
[1641677536419,2.00479,3069.1,3068.9,2.28200296]
[1641677536619,0.08139,3069.0,3068.3,2.00479]
[1641677536821,0.08139,3069.0,3068.1,2.28200296]
[1641677537021,1.41879,3069.0,3067.9,2.28200296]
[1641677537320,0.85987136,3068.9,3067.8,1.30114388]
[1641677537520,6.07423036,3068.9,3067.8,1.30114388]
[1641677537720,0.85987136,3068.9,3067.8,1.30114388]
[1641677537921,0.85987136,3068.9,3067.6,3.85066516]
[1641677538223,2.19727136,3068.9,3067.6,2.28200296]
[1641677538420,2.00479,3068.3,3067.6,4.28679296]
[1641677538621,0.08139,3068.2,3067.6,4.28679296]
[1641677538821,0.08139,3068.2,3067.6,2.00479]
[1641677539624,0.08139,3068.2,3067.2,2.28200296]
[1641677540126,0.08139,3068.2,3067.5,2.28200296]
[1641677540327,2.00479,3067.7,3067.0,3.63467824]
[1641677540624,0.08139,3067.6,3067.0,3.63467824]
[1641677540828,0.08139,3067.6,3066.7,2.00479]
[1641677541428,2.00479,3067.7,3067.5,2.28200296]
[1641677541627,2.00479,3067.7,3067.5,3.88847296]
[1641677542428,2.00479,3068.3,3067.6,2.645577]
[1641677542628,2.00479,3068.3,3068.2,2.28200296]
[1641677543028,2.00479,3068.3,3067.9,1.62940489]
[1641677543229,2.00479,3068.3,3067.9,2.28200296]
[1641677543631,0.08139,3068.2,3067.9,2.28200296]
[1641677544233,1.62896429,3070.5,3068.1,5.41129635]
[1641677544434,2.00479,3070.2,3069.7,2.28200296]
[1641677544630,2.00479,3070.2,3069.7,2.89000296]
[1641677544836,2.00479,3070.2,3069.7,3.55197296]
[1641677545531,2.00479,3070.2,3069.7,1.26997]
[1641677545731,2.00479,3070.2,3069.5,4.28679296]
[1641677546132,3.34219,3070.2,3069.5,2.00479]
[1641677546338,2.00479,3069.8,3068.8,2.00479]
[1641677547332,2.00479,3070.2,3068.8,2.00479]
[1641677547533,2.00479,3070.2,3069.7,2.28200296]
[1641677547733,2.00479,3070.2,3068.8,2.00479]
[1641677547935,2.00479,3070.2,3069.1,2.28200296]
[1641677548436,2.00479,3070.2,3069.8,2.00479]
[1641677548632,1.62898552,3070.5,3069.9,2.94397296]
[1641677548838,1.62898552,3070.5,3070.2,2.28200296]
[1641677549138,1.62854249,3071.3,3070.4,2.28200296]
[1641677549333,1.62854249,3071.3,3070.2,0.6397]
[1641677549535,1.62854249,3071.3,3070.3,2.28200296]
[1641677550337,1.62854249,3071.3,3070.8,2.00479]
[1641677550937,2.96594249,3071.3,3070.8,2.00479]
[1641677551137,2.96594249,3071.3,3070.3,2.28200296]
[1641677551338,1.62865388,3071.1,3069.8,0.1626]
[1641677551538,1.62865388,3071.1,3069.3,1.62865388]
[1641677551539,0.6866,3070.9,3069.5,2.28200296]
[1641677552440,2.00479,3070.5,3069.7,2.00479]
[1641677552641,2.00479,3070.5,3069.4,2.00479]
[1641677552841,1.33588451,3070.4,3069.4,2.00479]
[1641677553040,1.62908901,3070.3,3068.5,1.62908901]
[1641677553240,1.3374,3069.9,3068.6,2.28200296]
[1641677553641,2.96670666,3069.9,3068.5,0.1626]
[1641677553840,1.00374906,3069.8,3068.3,2.28200296]
[1641677554040,1.63764906,3069.8,3068.3,2.28200296]
[1641677554440,2.00479,3069.3,3068.5,2.00479]
[1641677555243,2.08625,3069.3,3068.5,2.00479]
[1641677555448,2.08625,3069.3,3067.7,2.28200296]
[1641677555645,2.08625,3069.3,3067.5,2.28200296]
[1641677555646,1.62994137,3068.7,3067.5,2.28200296]
[1641677555845,1.62994137,3068.7,3067.3,1.30114388]
[1641677555846,1.62998654,3068.6,3067.3,1.30114388]
[1641677556444,2.00479,3068.1,3067.4,2.00479]
[1641677556647,1.63035326,3067.9,3067.4,2.00479]
[1641677556844,2.56695326,3067.9,3067.4,2.00479]
[1641677558249,1.3374,3067.7,3067.4,2.00479]
[1641677558450,2.00479,3067.5,3066.7,3.58314684]
[1641677558655,2.00479,3067.5,3066.8,1.302757]
[1641677558851,2.00479,3067.5,3067.1,2.28200296]
[1641677559450,2.00479,3067.5,3066.8,1.302757]
[1641677560252,2.00479,3067.5,3066.9,2.28200296]
[1641677560650,2.00479,3067.5,3066.8,3.58475996]
[1641677563153,0.5,3066.9,3066.8,3.58475996]
[1641677563554,2.00479,3067.6,3066.8,5.08475996]
[1641677563756,30.7753,3068.6,3067.5,2.28200296]
[1641677563954,30.7753,3068.6,3067.7,2.28200296]
[1641677564155,1.6298723,3068.8,3067.7,2.28200296]
[1641677564556,1.6298723,3068.8,3067.7,4.28679296]
[1641677564557,2.00479,3068.4,3067.7,4.28679296]
[1641677564757,2.00479,3068.4,3067.9,2.28200296]
[1641677564955,2.00479,3068.4,3068.2,2.28200296]
[1641677565157,2.00479,3068.4,3068.2,3.23950296]
[1641677565656,2.00479,3068.4,3068.3,0.66197]
[1641677566257,33.77532193,3069.3,3068.3,0.66197]
[1641677566458,30.6251,3070.1,3068.3,0.66197]
[1641677566660,2.74565552,3070.8,3069.0,2.28200296]
[1641677566661,1.62901736,3070.4,3069.0,2.28200296]
[1641677566856,1.62901736,3070.4,3069.0,3.20840296]
[1641677567461,1.62901736,3070.4,3069.1,2.28200296]
[1641677567657,1.62901736,3070.4,3069.0,0.9264]
[1641677567857,1.62901736,3070.4,3069.3,2.28200296]
[1641677568059,1.3374,3070.5,3069.3,2.28200296]
[1641677568255,1.3374,3070.6,3069.9,2.28200296]
[1641677568458,2.96631122,3070.6,3070.0,0.640787]
[1641677568656,2.96631122,3070.6,3069.9,3.18250296]
[1641677568657,2.00479,3070.2,3069.9,3.18250296]
[1641677568858,2.00479,3070.2,3069.9,0.9005]
[1641677569055,2.00479,3070.2,3070.0,2.28200296]
[1641677569855,0.5,3070.1,3070.0,2.28200296]
[1641677570057,0.5,3070.1,3069.9,0.9005]
[1641677570656,0.5,3070.1,3069.8,1.302757]
[1641677570857,0.5,3070.1,3069.9,2.28200296]
[1641677571057,0.5,3070.1,3069.8,1.302757]
[1641677571758,0.5,3070.1,3069.8,0.640787]
[1641677572556,0.5,3070.1,3069.4,4.28679296]
[1641677573159,1.8374,3070.1,3069.1,2.00479]
[1641677573359,1.8374,3070.1,3068.0,0.08143]
[1641677573559,1.8374,3070.1,3068.7,2.28200296]
[1641677573758,1.62935445,3069.8,3068.7,2.28200296]
[1641677573960,1.62956155,3069.4,3068.1,2.28200296]
[1641677574163,1.62956155,3069.4,3068.4,2.28200296]
[1641677574562,2.00479,3069.3,3068.5,2.00479]
[1641677574761,2.00479,3069.3,3068.6,0.640787]
[1641677575162,2.00479,3069.3,3068.5,2.00479]
[1641677575763,1.62968902,3069.1,3068.5,2.00479]
[1641677575964,2.26938902,3069.1,3067.9,2.11940296]
[1641677576166,2.26938902,3069.1,3067.9,2.28200296]
[1641677576363,2.26938902,3069.1,3067.4,1.62968902]
[1641677576563,2.26938902,3069.1,3067.7,2.00479]
[1641677576564,2.00479,3068.4,3067.7,2.00479]
[1641677576765,2.94959,3068.4,3067.8,0.66197]
[1641677576964,2.94959,3068.4,3067.8,3.58475996]
[1641677578264,2.94959,3068.4,3067.7,2.00479]
[1641677578664,2.94959,3068.4,3067.8,0.66197]
[1641677578864,1.08557157,3069.1,3067.9,2.92278996]
[1641677579063,2.00479,3069.3,3067.9,0.640787]
[1641677579268,2.00479,3069.3,3068.1,2.28200296]
[1641677579465,2.00479,3069.3,3067.9,0.640787]
[1641677579466,2.00479,3069.3,3068.2,2.28200296]
[1641677579665,2.00479,3069.3,3068.5,2.28200296]
[1641677580267,1.3374,3069.1,3068.1,2.28200296]
[1641677580468,1.6296306,3069.2,3068.1,2.28200296]
[1641677580667,1.6296306,3069.2,3068.5,2.00479]
[1641677580866,2.00479,3069.3,3068.5,2.00479]
[1641677580867,2.00479,3069.3,3068.6,0.640787]
[1641677581068,2.00479,3069.3,3068.5,2.00479]
[1641677581268,1.3374,3069.1,3068.5,2.00479]
[1641677581669,3.34219,3069.3,3068.5,2.00479]
[1641677581871,2.00479,3069.3,3068.5,2.00479]
[1641677582069,2.00479,3069.5,3068.5,2.00479]
[1641677582070,2.00479,3069.5,3069.0,2.28200296]
[1641677582270,2.00479,3069.5,3069.4,2.28200296]
[1641677582470,1.62888734,3070.6,3069.4,3.00550296]
[1641677582671,3.63367734,3070.6,3070.0,2.28200296]
[1641677582870,3.63367734,3070.6,3070.0,2.92278996]
[1641677583072,3.63367734,3070.6,3070.0,3.58475996]
[1641677583470,3.63367734,3070.6,3070.0,2.92278996]
[1641677583871,3.63367734,3070.6,3069.4,0.7235]
[1641677584272,3.63367734,3070.6,3069.5,2.28200296]
[1641677584475,1.3374,3070.4,3068.3,0.08143]
[1641677584671,1.3374,3070.4,3068.2,2.80114388]
[1641677584672,1.3374,3069.8,3068.9,2.00479]
[1641677584871,1.3374,3069.8,3068.2,1.30114388]
[1641677584872,1.3374,3069.0,3068.2,1.30114388]
[1641677585072,0.6387,3069.0,3068.2,1.30114388]
[1641677585276,1.3374,3068.9,3068.2,1.30114388]
[1641677585878,1.3374,3068.9,3067.7,2.28200296]
[1641677586074,1.3374,3068.9,3067.6,1.30114388]
[1641677586075,1.56071094,3068.8,3067.6,1.30114388]
[1641677586676,1.56071094,3068.8,3067.9,2.00479]
[1641677586677,2.00479,3068.6,3067.9,2.00479]
[1641677587574,2.00479,3068.6,3067.7,2.28200296]
[1641677587774,2.00479,3068.6,3067.6,2.00479]
[1641677587974,0.08147,3068.5,3067.6,2.00479]
[1641677588373,5.296423,3068.5,3067.6,2.00479]
[1641677588574,2.00479,3068.1,3067.6,2.00479]
[1641677589274,0.5,3068.0,3067.6,2.645577]
[1641677589575,0.5,3068.0,3067.6,2.00479]
[1641677592380,0.5,3068.0,3066.3,3.42054684]
[1641677592576,2.00479,3066.4,3066.3,0.36092156]
[1641677592777,2.69089,3066.4,3066.3,0.35892156]
[1641677593180,8.02829,3066.4,3066.1,1.5686622]
[1641677593376,2.96869742,3066.2,3064.7,3.76742545]
[1641677593678,5.3374,3065.8,3065.1,3.12012316]
[1641677593878,4.0,3065.8,3065.1,3.12012316]
[1641677594080,2.32819,3065.7,3065.1,2.75522316]
[1641677594280,3.27579,3065.7,3065.1,2.75522316]
[1641677594480,1.3374,3065.6,3064.7,1.58698642]
[1641677594681,2.00479,3065.0,3064.7,1.58698642]
[1641677594885,2.60859,3065.0,3064.7,1.58698642]
[1641677595779,2.60859,3065.0,3064.3,2.00479]
[1641677595979,2.00479,3065.0,3064.3,2.00479]
[1641677596581,2.00479,3064.6,3064.1,2.28200296]
[1641677596783,2.00479,3064.6,3064.0,2.00479]
[1641677596982,2.93429,3064.6,3064.0,2.00479]
[1641677598181,2.93429,3064.6,3064.0,2.645577]
[1641677598480,2.93429,3064.6,3064.0,4.92757996]
[1641677598681,2.93429,3064.6,3064.0,4.28679296]
[1641677599281,2.93429,3064.6,3064.0,2.00479]
[1641677599482,2.93429,3064.6,3063.7,2.28200296]
[1641677600088,2.93429,3064.6,3064.1,2.11940296]
[1641677600287,2.93429,3064.6,3063.7,2.28200296]
[1641677600484,4.27169,3064.6,3062.5,0.08157]
[1641677600685,2.00479,3063.6,3062.9,2.00479]
[1641677600885,2.67719,3063.6,3062.9,2.00479]
[1641677601085,2.67719,3063.6,3062.9,4.28679296]
[1641677601486,2.67719,3063.6,3063.0,0.640787]
[1641677601688,2.67719,3063.6,3063.0,1.302757]
[1641677601888,2.00479,3063.6,3063.5,2.28200296]
[1641677602085,2.00479,3063.6,3063.1,2.28200296]
[1641677602486,2.00479,3063.6,3063.2,0.66197]
[1641677602690,2.00479,3063.6,3063.5,3.78200296]
[1641677602886,2.00479,3063.9,3063.5,3.75997296]
[1641677603187,0.5013,3065.0,3063.8,2.28200296]
[1641677603388,1.8387,3065.0,3063.5,0.816]
[1641677603586,1.63227198,3064.3,3063.5,0.816]
[1641677603886,1.63235457,3064.1,3063.5,3.09800296]
[1641677604086,1.63235457,3064.1,3063.5,3.73878996]
[1641677604689,2.00479,3063.9,3063.5,3.73878996]
[1641677604888,2.00479,3063.9,3063.5,4.40075996]
[1641677605292,2.00479,3064.2,3063.8,2.28200296]
[1641677605488,2.00479,3064.2,3064.1,2.28200296]
[1641677605691,0.08157,3065.5,3064.1,2.28200296]
[1641677605889,1.1802,3065.8,3064.4,2.28200296]
[1641677606090,1.1802,3065.8,3064.8,2.28200296]
[1641677606091,1.63165409,3065.4,3064.8,2.28200296]
[1641677606291,0.4936,3065.8,3064.9,1.302757]
[1641677606492,0.4936,3065.8,3064.9,0.66197]
[1641677606692,2.00479,3065.6,3064.9,2.66676]
[1641677607392,0.4936,3065.8,3064.9,4.94876296]
[1641677607796,0.4936,3065.8,3064.9,2.66676]
[1641677608693,0.4936,3065.8,3065.4,2.00479]
[1641677609994,2.96916858,3065.5,3064.4,2.28200296]
[1641677610198,1.3374,3065.4,3064.2,2.28200296]
[1641677610399,0.08157,3065.3,3064.4,2.28200296]
[1641677610597,2.00479,3064.9,3064.2,2.00479]
[1641677610797,2.00479,3064.9,3064.3,1.302757]
[1641677611798,2.00479,3064.9,3064.4,2.28200296]
[1641677611998,2.00479,3064.9,3064.3,1.302757]
[1641677612799,2.00479,3064.9,3064.3,0.66197]
[1641677613001,2.87969,3064.9,3064.3,0.66197]
[1641677613202,2.87969,3064.9,3064.3,2.94397296]
[1641677613600,2.87969,3064.9,3064.3,1.302757]
[1641677613801,2.87969,3064.9,3064.7,2.28200296]
[1641677614003,2.13179254,3065.5,3064.8,2.16197]
[1641677614004,0.5,3065.5,3064.8,2.16197]
[1641677614203,0.5,3065.5,3065.4,2.28200296]
[1641677614403,0.5,3065.5,3065.4,0.7485]
[1641677614606,0.5,3065.5,3065.4,4.75808]
[1641677616106,0.5,3065.5,3065.4,0.7485]
[1641677616307,0.5,3065.5,3064.8,2.28200296]
[1641677616706,2.00479,3065.4,3064.8,2.28200296]
[1641677617108,2.08634,3065.4,3064.8,2.28200296]
[1641677618113,2.08634,3065.4,3064.4,2.00479]
[1641677618508,2.08634,3065.4,3063.9,2.28200296]
[1641677618710,2.00479,3064.7,3064.0,2.00479]
[1641677619010,2.95169,3064.7,3064.0,2.00479]
[1641677620010,1.63222935,3064.4,3063.3,2.28200296]
[1641677620213,3.37458,3064.6,3063.3,2.28200296]
[1641677620410,4.0,3064.4,3063.3,2.28200296]
[1641677620612,1.3374,3064.3,3063.3,2.28200296]
[1641677620812,2.00479,3063.9,3063.2,2.00479]
[1641677621009,2.61669,3063.9,3063.2,2.00479]
[1641677621213,2.61669,3063.9,3063.0,2.28200296]
[1641677622011,6.61669,3063.9,3063.0,2.28200296]
[1641677622510,3.293,3063.8,3063.0,2.28200296]
[1641677622712,2.00479,3063.4,3063.0,2.28200296]
[1641677623311,1.63277035,3063.3,3063.0,2.28200296]
[1641677624712,2.00479,3063.1,3063.0,2.28200296]
[1641677625715,2.00479,3063.1,3062.4,2.00479]
[1641677626718,2.00479,3063.1,3062.5,1.302757]
[1641677626916,2.00479,3063.1,3062.4,2.00479]
[1641677628118,2.00479,3063.1,3062.4,1.92859]
[1641677628517,2.85139,3063.1,3062.4,1.92859]
[1641677629516,2.85139,3063.1,3062.0,1.5]
[1641677630118,2.00479,3063.1,3062.5,1.5]
[1641677630318,2.00479,3063.4,3062.6,1.302757]
[1641677630518,1.71406251,3064.3,3062.7,1.6321734]
[1641677630519,0.08162,3064.3,3062.7,1.6321734]
[1641677630717,2.00479,3064.0,3063.3,2.00479]
[1641677630923,2.00479,3064.0,3063.4,0.66197]
[1641677632519,0.5,3063.5,3063.0,2.00479]
[1641677632720,0.0816,3064.8,3063.4,2.00479]
[1641677632919,0.08158,3065.4,3063.4,2.59999]
[1641677633321,1.63199493,3064.8,3063.4,4.09999]
[1641677633522,1.63199493,3064.8,3063.8,1.5]
[1641677633720,5.22125,3065.3,3063.8,1.5]
[1641677633921,0.4791,3065.5,3063.9,1.63156624]
[1641677634122,1.5407624,3065.5,3064.4,1.5]
[1641677634323,0.4791,3065.5,3064.4,2.3016]
[1641677634523,1.63148372,3065.8,3064.6,1.5]
[1641677634825,2.00479,3065.1,3064.4,2.80639]
[1641677635022,2.00479,3065.1,3064.5,1.302757]
[1641677635224,0.4919,3065.8,3064.9,1.5]
[1641677635823,0.4919,3065.8,3064.6,1.5]
[1641677636024,0.4919,3065.8,3064.8,1.5]
[1641677636629,1.63129742,3066.1,3064.8,1.5]
[1641677636824,2.00479,3065.6,3064.9,2.00479]
[1641677637126,2.00479,3065.6,3065.0,0.66197]
[1641677638726,2.00479,3065.9,3065.0,0.66197]
[1641677639827,2.00479,3065.9,3065.1,1.5]
[1641677640028,2.00479,3065.9,3065.2,0.66197]
[1641677640226,2.00479,3065.9,3065.2,1.302757]
[1641677640427,2.49649,3066.2,3065.2,1.302757]
[1641677640827,2.49649,3066.2,3065.6,2.00479]
[1641677641029,2.49649,3066.2,3065.7,0.66197]
[1641677642530,1.5,3065.8,3064.0,0.08153]
[1641677642829,2.00479,3065.1,3064.4,2.00479]
[1641677643030,2.70249,3065.1,3064.4,2.00479]
[1641677643429,2.70249,3065.1,3064.5,0.66197]
[1641677644031,1.5,3064.7,3064.0,2.00479]
[1641677644230,1.5,3064.9,3064.0,2.00479]
[1641677644731,2.00479,3064.5,3064.0,2.00479]